bitfinex-derivatives/quotes_BNBF0:USTF0_20250710
["timestamp","ask_amount","ask_price","bid_price","bid_amount"]
[1752146222625,1.66825201,670.39,669.7,2.178]
[1752146223026,1.66825201,670.41,669.7,2.178]
[1752146228526,1.66825201,670.4,669.7,2.178]
[1752146229431,1.66825201,670.41,669.7,2.178]
[1752146231533,1.66825201,670.4,669.7,2.178]
[1752146232729,1.66825201,670.37,669.7,4.41015321]
[1752146234529,1.66825201,670.37,669.71,2.23215321]
[1752146235330,1.66825201,670.36,669.71,2.23215321]
[1752146235534,1.66825201,670.38,669.7,2.178]
[1752146238434,1.66825201,670.37,669.7,2.178]
[1752146239132,1.66825201,670.36,669.7,4.41015321]
[1752146240836,1.66825201,670.36,669.71,2.23215321]
[1752146242536,1.66825201,670.36,669.7,4.41015321]
[1752146243336,1.66825201,670.36,669.71,2.23215321]
[1752146244037,1.66825201,670.35,669.71,2.23215321]
[1752146244736,3.50017475,670.48,669.71,2.23215321]
[1752146244737,1.66825201,670.34,669.71,2.23215321]
[1752146244935,1.66825201,670.35,669.71,2.23215321]
[1752146245436,1.66825201,670.33,669.76,2.23215321]
[1752146246432,1.66825201,670.32,669.77,2.23215321]
[1752146246832,1.66825201,670.42,669.69,0.25963949]
[1752146247037,1.27410301,670.43,669.69,0.25963949]
[1752146247038,1.66825201,670.43,669.69,0.25963949]
[1752146247940,1.66825201,670.44,669.69,0.25963949]
[1752146248436,1.66825201,670.43,669.69,0.25963949]
[1752146249243,1.66825201,670.44,669.69,0.25963949]
[1752146249440,1.66825201,670.43,669.7,1.465]
[1752146250539,1.66825201,670.42,669.7,1.465]
[1752146250839,1.66825201,670.45,669.7,1.465]
[1752146251343,1.66825201,670.44,669.7,1.465]
[1752146253342,1.66825201,670.42,669.7,1.465]
[1752146254642,1.66825201,670.43,669.7,1.465]
[1752146256743,1.66825201,670.4,669.7,1.465]
[1752146257547,1.66825201,670.41,669.7,1.465]
[1752146257745,0.25966758,670.4,669.71,0.25966758]
[1752146257944,1.92791959,670.4,669.71,0.25966758]
[1752146259150,1.66825201,670.39,669.71,0.25966758]
[1752146259647,1.92791959,670.4,669.71,0.25966758]
[1752146260348,1.93695351,670.4,669.71,0.25966758]
[1752146260752,1.67728593,670.38,669.71,2.49182079]
[1752146261249,1.67728593,670.37,669.72,2.23215321]
[1752146262350,1.67728593,670.38,669.72,2.23215321]
[1752146263052,1.67728593,670.39,669.71,0.25966758]
[1752146264455,1.67728593,670.38,669.71,2.49182079]
[1752146265756,1.67728593,670.38,669.72,2.23215321]
[1752146266057,1.67707611,670.38,669.72,2.23215321]
[1752146267158,1.67707611,670.37,669.73,2.23215321]
[1752146268356,1.67707611,670.38,669.73,2.23215321]
[1752146269357,1.67707611,670.37,669.74,2.23215321]
[1752146270556,1.67707611,670.37,669.75,2.23215321]
[1752146272861,1.67707611,670.35,669.8,2.23215321]
[1752146273362,1.67707611,670.33,669.81,2.23215321]
[1752146273560,1.67707611,670.33,669.83,2.23215321]
[1752146274558,1.67707611,670.33,669.84,2.092]
[1752146274757,1.67707611,670.34,669.84,2.092]
[1752146275261,1.67707611,670.37,669.84,2.092]
[1752146278063,1.67707611,670.38,669.84,2.092]
[1752146283360,0.25966758,670.4,669.84,2.092]
[1752146283563,1.67687962,670.38,669.84,2.092]
[1752146285064,1.67687962,670.37,669.84,2.092]
[1752146285465,1.67687962,670.36,669.84,2.092]
[1752146286166,1.67687962,670.37,669.84,2.092]
[1752146287970,1.67687962,670.38,669.84,2.092]
[1752146288366,1.9365472,670.4,669.84,2.092]
[1752146289161,0.25966758,670.4,669.84,2.092]
[1752146289367,1.93659166,670.4,669.84,2.092]
[1752146292764,1.93665795,670.4,669.84,2.092]
[1752146296464,1.67699037,670.39,669.84,2.092]
[1752146297871,1.67699037,670.38,669.84,2.092]
[1752146298169,1.67699037,670.36,669.84,2.092]
[1752146300068,1.67699037,670.37,669.84,2.092]
[1752146300274,0.25966758,670.4,669.85,2.23443888]
[1752146300574,0.25966758,670.4,669.84,4.32643888]
[1752146300971,0.25966758,670.4,669.85,2.23443888]
[1752146302174,0.25966758,670.4,669.84,4.32643888]
[1752146303381,0.25966758,670.4,669.84,2.092]
[1752146305878,0.25966758,670.4,669.88,2.23443888]
[1752146306382,0.25966758,670.4,669.87,2.23443888]
[1752146306886,0.25966758,670.4,669.85,2.23443888]
[1752146307184,0.25966758,670.4,669.86,2.23443888]
[1752146307382,0.25966758,670.4,669.85,2.23443888]
[1752146307884,0.25966758,670.4,669.84,2.092]
[1752146317791,1.93665795,670.4,669.84,2.092]
[1752146319289,1.67699037,670.39,669.84,2.092]
[1752146319893,1.93665795,670.4,669.84,2.092]
[1752146320395,0.25966758,670.4,669.84,2.092]
[1752146323596,0.25966758,670.4,669.71,0.25966758]
[1752146326396,0.25966758,670.4,669.72,2.086]
[1752146341916,0.25966758,670.4,669.74,2.23443888]
[1752146345420,0.25966758,670.4,669.75,2.23443888]
[1752146347416,1.93557921,670.4,669.78,2.23443888]
[1752146347618,1.93557921,670.4,669.79,2.23443888]
[1752146348822,1.67591163,670.39,669.79,2.23443888]
[1752146349221,1.67591163,670.39,669.8,2.23443888]
[1752146349920,1.67591163,670.39,669.81,2.23443888]
[1752146350918,1.67591163,670.45,669.72,2.086]
[1752146352925,1.67591163,670.46,669.72,2.086]
[1752146353824,1.93554821,670.51,669.72,2.086]
[1752146354522,0.25963658,670.51,669.72,2.086]
[1752146355427,1.93554821,670.51,669.72,2.086]
[1752146360332,1.67591163,670.5,669.72,2.086]
[1752146361035,1.93554821,670.51,669.72,2.086]
[1752146361941,1.67591163,670.5,669.72,2.086]
[1752146363840,1.67591163,670.48,669.75,2.23443888]
[1752146364241,1.67591163,670.47,669.78,2.23443888]
[1752146365137,1.67591163,670.46,669.78,2.23443888]
[1752146365342,1.67591163,670.48,669.75,2.23443888]
[1752146366141,1.67591163,670.49,669.73,2.23443888]
[1752146370740,1.67591163,670.48,669.75,2.23443888]
[1752146371045,1.67591163,670.47,669.78,2.23443888]
[1752146371745,1.93554821,670.51,669.72,2.086]
[1752146373543,1.93585521,670.51,669.72,2.086]
[1752146373948,0.25963658,670.51,669.72,2.086]
[1752146376048,1.93585521,670.51,669.72,2.086]
[1752146376349,0.25963658,670.51,669.73,2.23443888]
[1752146377849,0.25963658,670.51,669.72,2.086]
[1752146381451,0.25963658,670.51,669.73,2.23443888]
[1752146382249,0.25963658,670.51,669.72,4.32043888]
[1752146383155,0.25963658,670.51,669.72,2.086]
[1752146386452,0.25963658,670.51,669.71,0.25966758]
[1752146390557,0.25963658,670.51,669.72,1.865]
[1752146393059,0.25963658,670.51,669.73,2.23443888]
[1752146395162,0.25963658,670.51,669.74,2.23443888]
[1752146395859,0.25963658,670.51,669.72,4.09943888]
[1752146397063,0.25963658,670.51,669.72,1.865]
[1752146402365,0.25963658,670.51,669.79,2.23048784]
[1752146402863,0.25963658,670.51,669.78,2.23048784]
[1752146403760,0.25963658,670.51,669.75,2.23048784]
[1752146404064,0.25963658,670.51,669.74,2.23048784]
[1752146404259,0.25963658,670.51,669.75,2.23048784]
[1752146404465,0.25963658,670.51,669.74,2.23048784]
[1752146404766,0.25963658,670.51,669.75,2.23048784]
[1752146405262,0.25963658,670.51,669.74,2.23048784]
[1752146406165,0.25963658,670.51,669.75,2.23048784]
[1752146406762,0.25963658,670.51,669.72,4.09548784]
[1752146407361,0.25963658,670.51,669.72,1.865]
[1752146412868,0.25963658,670.51,669.73,2.23048784]
[1752146413368,0.25963658,670.51,669.75,2.23048784]
[1752146413868,0.25963658,670.51,669.76,2.23048784]
[1752146416671,0.25963658,670.51,669.78,2.23048784]
[1752146417373,0.25963658,670.51,669.82,2.23048784]
[1752146417874,0.25963658,670.51,669.88,2.23048784]
[1752146418671,0.25963658,670.51,669.89,2.23048784]
[1752146418875,0.25963658,670.51,669.91,2.23048784]
[1752146420373,0.25963658,670.51,669.99,2.23048784]
[1752146421778,0.25963658,670.51,669.96,2.23048784]
[1752146422477,0.25963658,670.51,669.97,2.23048784]
[1752146424377,0.25963658,670.51,669.96,2.23048784]
[1752146424877,0.25963658,670.51,669.97,2.23048784]
[1752146425975,0.25963658,670.51,669.94,2.23048784]
[1752146427980,0.25963658,670.51,669.9,2.23048784]
[1752146431475,0.25963658,670.51,669.92,2.23048784]
[1752146433179,0.25963658,670.51,669.93,1.653]
[1752146433782,0.25963658,670.51,669.93,3.88348784]
[1752146434183,0.25963658,670.51,669.94,2.23048784]
[1752146434379,0.25963658,670.51,669.93,3.88348784]
[1752146435181,0.25963658,670.51,669.94,2.23048784]
[1752146435382,0.25963658,670.51,669.93,1.653]
[1752146438082,0.25963658,670.51,669.94,2.23048784]
[1752146440984,0.25963658,670.51,669.95,2.23048784]
[1752146444885,0.25963658,670.51,669.94,2.23048784]
[1752146445288,0.25963658,670.51,669.96,2.23048784]
[1752146445790,0.25963658,670.51,670.02,2.23048784]
[1752146445986,0.25963658,670.51,670.0,2.23048784]
[1752146446891,0.25963658,670.51,669.93,1.653]
[1752146448293,1.67458039,670.7,669.93,1.653]
[1752146448489,0.25956396,670.67,669.93,1.653]
[1752146458106,0.25956396,670.67,669.93,3.88348784]
[1752146458804,0.25956396,670.67,669.97,2.23048784]
[1752146461009,1.67435833,670.75,669.97,2.23048784]
[1752146461207,1.93389809,670.75,669.97,2.23048784]
[1752146462606,0.25953976,670.75,669.98,2.23048784]
[1752146462808,1.93389809,670.75,670.0,2.23048784]
[1752146463808,1.93389809,670.75,670.07,2.23048784]
[1752146463809,1.67435833,670.72,670.07,2.23048784]
[1752146464204,1.67435833,670.73,670.07,2.23048784]
[1752146464910,1.67435833,670.72,670.07,2.23048784]
[1752146465112,1.67435833,670.72,669.93,4.99873176]
[1752146465113,1.67435833,670.71,670.11,2.23048784]
[1752146466810,1.67435833,670.7,670.12,2.23048784]
[1752146467813,0.25953976,670.75,669.98,2.23048784]
[1752146468113,0.25953976,670.75,669.95,2.23048784]
[1752146468409,0.25953976,670.75,669.96,2.23048784]
[1752146468714,0.25953976,670.75,669.97,2.23048784]
[1752146471215,0.25953976,670.75,669.96,2.23048784]
[1752146471814,0.25953976,670.75,669.95,2.23048784]
[1752146476320,0.25953976,670.75,670.02,2.23048784]
[1752146477821,0.25953976,670.75,670.04,2.23048784]
[1752146478022,0.25953976,670.75,669.99,2.23048784]
[1752146478520,0.25953976,670.75,670.0,2.23048784]
[1752146479123,0.25953976,670.75,669.99,2.23048784]
[1752146479321,0.25953976,670.75,670.0,2.23048784]
[1752146479717,0.25953976,670.75,670.01,1.344]
[1752146480322,0.25953976,670.75,670.01,3.57448784]
[1752146480523,0.25953976,670.75,670.01,1.344]
[1752146481022,0.25953976,670.75,670.01,3.57448784]
[1752146481523,0.25953976,670.75,670.02,2.23048784]
[1752146482320,0.25953976,670.75,670.03,2.23048784]
[1752146487829,1.67435833,670.73,670.1,2.23048784]
[1752146488325,1.67435833,670.73,670.11,2.23048784]
[1752146489525,1.67435833,670.73,670.1,2.23048784]
[1752146489832,1.67435833,670.74,670.1,2.23048784]
[1752146490426,1.67435833,670.73,670.11,2.23048784]
[1752146490828,1.67435833,670.73,670.1,2.23048784]
[1752146491031,1.67435833,670.72,670.13,2.23048784]
[1752146491532,1.67435833,670.73,670.11,2.23048784]
[1752146492336,1.67435833,670.73,670.12,2.23048784]
[1752146493334,1.67435833,670.73,670.11,2.23048784]
[1752146493531,1.67435833,670.73,670.12,2.23048784]
[1752146495534,1.67435833,670.72,670.13,2.23048784]
[1752146497138,1.67435833,670.73,670.12,2.23048784]
[1752146497536,1.67435833,670.73,670.11,2.23048784]
[1752146498233,1.67435833,670.73,670.01,1.344]
[1752146498234,1.67435833,670.73,670.1,2.23048784]
[1752146499433,1.67435833,670.73,670.11,2.23048784]
[1752146499637,1.67435833,670.73,670.1,2.23048784]
[1752146499937,1.67435833,670.73,670.11,2.23048784]
[1752146501339,1.67435833,670.72,670.12,2.23048784]
[1752146502034,1.67435833,670.73,670.1,2.23048784]
[1752146504336,0.25953976,670.75,670.15,2.23048784]
[1752146507041,0.25953976,670.75,670.16,2.23048784]
[1752146507338,0.25953976,670.75,670.15,2.23048784]
[1752146507939,1.67435833,670.82,670.08,2.23048784]
[1752146509342,1.67435833,670.82,670.01,1.344]
[1752146509343,1.67435833,670.82,670.07,2.23048784]
[1752146510838,1.67435833,670.82,670.01,1.344]
[1752146510839,0.25949912,670.85,670.11,2.23048784]
[1752146515444,0.25949912,670.85,670.1,2.23048784]
[1752146517348,1.67435833,670.84,670.16,2.23048784]
[1752146518550,0.25949912,670.85,670.02,2.23048784]
[1752146518748,0.25949912,670.85,670.01,3.57448784]
[1752146518950,1.93385745,670.85,670.01,1.344]
[1752146519149,1.67435833,670.84,670.01,1.344]
[1752146519546,1.93385745,670.85,670.01,1.344]
[1752146519846,1.67435833,670.84,670.01,1.344]
[1752146523256,1.93385745,670.85,670.01,1.344]
[1752146528362,1.67435833,670.83,670.01,1.344]
[1752146528758,1.67435833,670.81,670.03,2.23048784]
[1752146528958,1.67435833,670.8,670.05,2.23048784]
[1752146530565,1.67435833,670.79,670.07,2.23048784]
[1752146531261,1.67435833,670.8,670.06,2.23048784]
[1752146531666,1.67435833,670.77,670.03,2.23048784]
[1752146532463,0.25949912,670.85,670.07,2.23048784]
[1752146532464,1.67435833,670.75,670.07,2.23048784]
[1752146533066,1.67435833,670.77,670.03,2.23048784]
[1752146534568,1.67435833,670.77,670.01,1.344]
[1752146534569,1.67435833,670.77,670.04,2.23048784]
[1752146534863,1.67435833,670.76,670.04,2.23048784]
[1752146536668,1.67435833,670.74,670.02,2.23048784]
[1752146536866,1.67435833,670.73,670.02,2.23048784]
[1752146538167,1.67435833,670.73,670.03,1.495]
[1752146541070,1.67435833,670.72,670.03,1.495]
[1752146541370,1.67435833,670.71,670.03,1.495]
[1752146541774,1.67435833,670.64,670.03,1.495]
[1752146542374,2.23223698,670.8,670.03,1.495]
[1752146542375,1.67435833,670.65,670.03,1.495]
[1752146542871,1.67435833,670.6,670.04,2.23048784]
[1752146543370,1.67435833,670.61,670.03,3.72548784]
[1752146545372,1.67435833,670.61,670.03,1.495]
[1752146545876,1.67435833,670.62,670.03,1.495]
[1752146546773,1.67435833,670.66,670.03,1.495]
[1752146549376,1.67435833,670.67,670.03,1.495]
[1752146549681,1.67435833,670.66,670.03,1.495]
[1752146549882,1.67435833,670.67,670.03,1.495]
[1752146551081,1.67435833,670.68,670.03,1.495]
[1752146551378,1.67435833,670.69,670.03,1.495]
[1752146555185,1.67435833,670.7,670.03,1.495]
[1752146556685,1.67435833,670.68,670.03,1.495]
[1752146557982,1.67435833,670.7,670.03,1.495]
[1752146561188,1.67435833,670.71,670.03,1.495]
[1752146561397,1.67435833,670.7,670.03,1.495]
[1752146565208,1.67435833,670.71,670.03,1.495]
[1752146565495,0.25949912,670.85,670.03,1.495]
[1752146565496,1.67435833,670.72,670.03,1.495]
[1752146567797,1.67435833,670.71,670.03,1.495]
[1752146570805,1.67435833,670.7,670.03,1.495]
[1752146571200,1.67435833,670.71,670.03,1.495]
[1752146575005,1.67435833,670.7,670.03,1.495]
[1752146575207,1.67435833,670.67,670.03,1.495]
[1752146577304,1.67435833,670.66,670.03,1.495]
[1752146577909,1.67435833,670.68,670.03,1.495]
[1752146578409,1.67435833,670.68,669.94,2.23048784]
[1752146579106,1.67435833,670.68,669.95,2.23048784]
[1752146580306,1.67435833,670.67,669.96,2.23048784]
[1752146581108,1.67435833,670.67,669.97,1.822]
[1752146582211,1.67435833,670.67,669.97,4.05248784]
[1752146583509,1.67435833,670.66,669.97,4.05248784]
[1752146583812,1.67435833,670.66,669.98,2.23048784]
[1752146584210,1.67435833,670.66,669.99,2.23048784]
[1752146584412,1.67435833,670.66,669.98,2.23048784]
[1752146587210,1.67435833,670.65,669.98,2.23048784]
[1752146587815,1.67435833,670.63,670.04,2.23048784]
[1752146589217,1.67435833,670.62,670.05,2.23048784]
[1752146590915,1.67435833,670.63,670.04,2.23048784]
[1752146591118,1.67435833,670.62,670.04,2.23048784]
[1752146594020,1.67435833,670.61,670.05,2.23048784]
[1752146594220,1.67435833,670.61,670.06,2.23048784]
[1752146594618,1.67435833,670.69,669.97,1.822]
[1752146594822,1.67435833,670.7,669.97,1.822]
[1752146595018,1.67435833,670.69,669.97,1.822]
[1752146595218,1.67435833,670.68,669.97,1.822]
[1752146600227,1.67435833,670.67,669.97,1.822]
[1752146601228,1.67435833,670.66,669.97,1.822]
[1752146602425,1.67435833,670.67,669.97,1.822]
[1752146604629,1.67435833,670.64,669.97,1.822]
[1752146606126,1.67435833,670.65,669.97,1.822]
[1752146608128,1.67435833,670.66,669.97,1.822]
[1752146612133,1.67435833,670.65,669.97,1.822]
[1752146613032,1.67435833,670.64,669.97,1.822]
[1752146614335,1.67435833,670.62,669.97,1.822]
[1752146615833,1.67435833,670.61,669.98,2.23048784]
[1752146617838,1.67435833,670.59,670.03,2.23048784]
[1752146618338,1.67726454,670.59,670.03,2.23048784]
[1752146618938,1.27557252,670.72,669.97,1.822]
[1752146618939,1.67726454,670.58,670.04,2.23048784]
[1752146619939,1.67726454,670.58,670.05,2.23048784]
[1752146620435,1.67726454,670.57,670.06,2.23048784]
[1752146620836,1.67726454,670.57,670.07,2.23048784]
[1752146622644,1.67726454,670.57,670.08,2.23048784]
[1752146622944,1.67726454,670.59,670.02,2.23048784]
[1752146623342,1.67726454,670.61,669.99,2.23048784]
[1752146627342,1.67726454,670.6,669.99,2.23048784]
[1752146629546,1.67726454,670.61,669.98,2.23048784]
[1752146631148,1.67726454,670.61,669.97,2.23048784]
[1752146631852,1.67726454,670.61,669.98,1.659]
[1752146632853,1.67726454,670.6,669.99,2.23048784]
[1752146633048,1.67726454,670.62,669.98,1.659]
[1752146634049,1.67726454,670.61,669.98,1.659]
[1752146635654,1.2753429,670.77,669.98,1.659]
[1752146635852,1.67729132,670.61,669.98,1.659]
[1752146636358,1.67729132,670.63,669.98,1.659]
[1752146640855,1.67729132,670.62,669.98,1.659]
[1752146642958,1.67729132,670.61,669.98,1.659]
[1752146643961,1.67729132,670.61,669.98,3.88948784]
[1752146646261,1.67729132,670.56,670.09,2.23048784]
[1752146647666,1.67729132,670.56,670.08,2.23048784]
[1752146648466,1.67729132,670.57,670.08,2.23048784]
[1752146649866,1.67729132,670.6,670.01,2.23048784]
[1752146650063,1.67729132,670.59,670.02,2.23048784]
[1752146651169,1.67729132,670.6,670.0,2.23048784]
[1752146651362,1.67729132,670.61,669.98,3.88948784]
[1752146651667,1.67729132,670.6,670.0,2.23048784]
[1752146652768,1.67729132,670.6,669.99,2.23048784]
[1752146652968,1.67729132,670.62,669.98,1.659]
[1752146654667,1.67729132,670.61,669.98,1.659]
[1752146655968,1.2759779,670.78,669.98,1.659]
[1752146655969,1.67729132,670.6,669.98,1.659]
[1752146656164,1.67729132,670.61,669.98,1.659]
[1752146656364,1.67729132,670.6,669.98,1.659]
[1752146661374,1.67729132,670.59,669.98,1.659]
[1752146662873,1.67729132,670.57,670.02,2.23048784]
[1752146664273,1.67729132,670.56,670.03,2.23048784]
[1752146664474,1.67729132,670.56,670.04,2.23048784]
[1752146666275,1.67729132,670.56,670.05,2.23048784]
[1752146666780,1.67729132,670.55,670.07,2.23048784]
[1752146669977,1.67729132,670.56,670.05,2.23048784]
[1752146670981,1.67729132,670.55,670.06,2.23048784]
[1752146671377,1.67729132,670.55,670.07,2.23048784]
[1752146672983,1.67729132,670.59,669.98,3.88948784]
[1752146673480,1.67729132,670.59,669.99,2.23048784]
[1752146674285,1.2759779,670.73,669.99,2.23048784]
[1752146674485,1.2759779,670.73,669.98,1.659]
[1752146674486,1.67714109,670.59,669.98,3.88948784]
[1752146679982,1.67714109,670.59,669.98,2.23048784]
[1752146681682,1.67714109,670.59,669.97,2.23048784]
[1752146682592,1.67714109,670.59,669.98,1.64]
[1752146682788,1.67714109,670.57,670.03,2.23048784]
[1752146684385,1.67714109,670.57,670.04,2.23048784]
[1752146684586,1.67714109,670.57,670.03,2.23048784]
[1752146689093,1.67714109,670.56,670.03,2.23048784]
[1752146689590,1.67714109,670.5,669.98,1.64]
[1752146690195,1.67714109,670.51,669.98,1.64]
[1752146691595,1.67714109,670.5,669.98,1.64]
[1752146692390,1.67714109,670.51,669.98,1.64]
[1752146693896,1.67714109,670.52,669.98,1.64]
[1752146695097,1.67714109,670.51,669.98,1.64]
[1752146696593,1.67714109,670.52,669.98,1.64]
[1752146696998,1.67714109,670.49,669.98,1.64]
[1752146697900,1.67714109,670.51,669.98,1.64]
[1752146698095,1.67714109,670.52,669.98,1.64]
[1752146701399,1.67714109,670.53,669.98,1.64]
[1752146705200,1.67714109,670.54,669.98,1.64]
[1752146706504,1.67714109,670.53,669.98,1.64]
[1752146707800,1.67714109,670.51,669.98,1.64]
[1752146708198,1.67714109,670.52,669.98,1.64]
[1752146708602,0.25962206,670.44,669.98,1.64]
[1752146714201,1.67714109,670.42,669.98,1.64]
[1752146715305,1.67714109,670.43,669.98,1.64]
[1752146717205,1.93676315,670.44,669.98,1.64]
[1752146718206,0.25962206,670.44,669.98,1.64]
[1752146722815,1.93676315,670.44,669.98,1.64]
[1752146729220,0.25962206,670.44,669.98,1.64]
[1752146730321,1.67714109,670.43,669.98,1.64]
[1752146731325,0.25962206,670.44,669.98,1.64]
[1752146731529,1.67048234,670.43,669.98,1.64]
[1752146731925,1.67048234,670.42,669.98,1.64]
[1752146734627,1.67048234,670.41,669.98,1.64]
[1752146735032,1.67048234,670.42,669.98,1.64]
[1752146737938,0.25962206,670.44,669.98,1.64]
[1752146740735,0.25962206,670.44,669.71,0.25964046]
[1752146743836,0.25962206,670.44,669.72,1.854]
[1752146747845,1.9301044,670.44,669.72,1.854]
[1752146748442,1.67048234,670.43,669.72,1.854]
[1752146748641,1.9301044,670.44,669.72,1.854]
[1752146749344,1.67048234,670.43,669.72,1.854]
[1752146750141,1.67048234,670.42,669.72,1.854]
[1752146752444,1.67048234,670.41,669.72,1.854]
[1752146754244,0.25962206,670.44,669.72,1.854]
[1752146754245,1.67048234,670.4,669.72,1.854]
[1752146756550,1.67048234,670.39,669.72,1.854]
[1752146757948,0.25962206,670.44,669.72,1.854]
[1752146757949,1.67048234,670.41,669.72,1.854]
[1752146762954,1.67048234,670.42,669.72,1.854]
[1752146763850,1.67048234,670.4,669.72,1.854]
[1752146765251,1.67048234,670.39,669.72,1.854]
[1752146767254,1.67048234,670.38,669.72,1.854]
[1752146768457,1.67048234,670.37,669.72,1.854]
[1752146769158,1.67048234,670.36,669.72,1.854]
[1752146770253,1.67048234,670.35,669.72,1.854]
[1752146771358,1.67048234,670.34,669.72,1.854]
[1752146772259,1.67048234,670.32,669.72,1.854]
[1752146772955,1.67048234,670.29,669.75,2.23048784]
[1752146773455,1.67048234,670.29,669.76,2.23048784]
[1752146774459,1.27281731,670.41,669.76,2.23048784]
[1752146774460,1.67048234,670.28,669.76,2.23048784]
[1752146775960,1.67048234,670.31,669.72,1.854]
[1752146777960,1.67048234,670.3,669.72,4.08448784]
[1752146778262,1.67048234,670.31,669.72,4.08448784]
[1752146778458,1.67048234,670.3,669.72,4.08448784]
[1752146778757,1.67048234,670.3,669.73,2.23048784]
[1752146779759,1.67048234,670.29,669.74,2.23048784]
[1752146780460,1.67048234,670.3,669.72,4.08448784]
[1752146782965,1.67048234,670.33,669.72,1.854]
[1752146783766,1.67048234,670.33,669.71,0.25964046]
[1752146785874,1.67048234,670.32,669.71,0.25964046]
[1752146786270,1.67048234,670.32,669.72,1.554]
[1752146786672,1.67764879,670.32,669.72,1.554]
[1752146791376,1.67764879,670.38,669.72,1.554]
[1752146792676,0.25962206,670.44,669.72,1.554]
[1752146793079,1.67762988,670.38,669.72,1.554]
[1752146793282,1.67762988,670.37,669.72,1.554]
[1752146797285,1.67762988,670.38,669.72,1.554]
[1752146801383,1.67762988,670.33,669.72,1.554]
[1752146806390,1.67762988,670.32,669.72,1.554]
[1752146807089,0.25962206,670.44,669.72,1.554]
[1752146807090,1.67762988,670.31,669.72,1.554]
[1752146807289,1.67762988,670.31,669.72,3.79031615]
[1752146807685,1.67762988,670.31,669.72,1.554]
[1752146808389,1.67762988,670.3,669.73,2.23631615]
[1752146809385,1.67762988,670.27,669.81,2.23631615]
[1752146809685,1.67762988,670.27,669.8,2.23631615]
[1752146811087,1.67762988,670.27,669.81,2.23631615]
[1752146812890,1.67762988,670.31,669.72,1.554]
[1752146814994,1.67762988,670.32,669.72,1.554]
[1752146815593,1.67762988,670.31,669.72,1.554]
[1752146816395,1.67762988,670.32,669.72,1.554]
[1752146816695,1.67762988,670.33,669.72,1.554]
[1752146822803,1.67762988,670.32,669.72,1.554]
[1752146824804,1.67762988,670.31,669.72,1.554]
[1752146825407,1.67762988,670.33,669.72,1.554]
[1752146827308,1.67762988,670.33,669.71,0.25964046]
[1752146830109,1.67762988,670.32,669.71,0.25964046]
[1752146830911,1.67762988,670.32,669.72,1.684]
[1752146833006,1.67762988,670.33,669.72,1.684]
[1752146833208,1.67762988,670.32,669.72,1.684]
[1752146835215,1.67762988,670.3,669.72,3.92031615]
[1752146836509,1.67762988,670.3,669.72,1.684]
[1752146839717,1.67762988,670.3,669.72,3.92031615]
[1752146843217,1.67762988,670.3,669.73,2.23631615]
[1752146844920,1.67762988,670.29,669.75,2.23631615]
[1752146846524,1.67762988,670.28,669.75,2.23631615]
[1752146850926,1.67762988,670.29,669.75,2.23631615]
[1752146851429,1.67762988,670.28,669.76,2.23631615]
[1752146851828,1.67762988,670.28,669.77,1.403]
[1752146852730,1.67762988,670.26,669.82,2.23631615]
[1752146852931,1.67762988,670.3,669.77,1.403]
[1752146858530,1.67762988,670.31,669.77,1.403]
[1752146861436,1.67762988,670.3,669.77,1.403]
[1752146861734,1.67762988,670.33,669.77,1.403]
[1752146862733,1.67762988,670.31,669.77,1.403]
[1752146866037,0.25962206,670.44,669.77,1.403]
[1752146866240,1.67800116,670.31,669.77,1.403]
[1752146866843,1.67800116,670.32,669.77,1.403]
[1752146868343,1.67800116,670.31,669.77,1.403]
[1752146870346,1.67800116,670.32,669.77,1.403]
[1752146871847,1.67800116,670.29,669.77,1.403]
[1752146872847,1.67800116,670.31,669.77,1.403]
[1752146876150,1.67800116,670.32,669.77,1.403]
[1752146876651,1.67800116,670.31,669.77,1.403]
[1752146877146,1.67800116,670.37,669.77,1.403]
[1752146877352,0.25962206,670.44,669.77,1.403]
[1752146886957,0.25962206,670.44,669.78,2.23631615]
[1752146887253,0.25962206,670.44,669.82,2.23631615]
[1752146887456,0.25962206,670.44,669.83,2.23631615]
[1752146889459,1.93762322,670.44,669.85,2.23631615]
[1752146890655,1.93762322,670.44,669.84,2.23631615]
[1752146891254,1.93762322,670.44,669.85,2.23631615]
[1752146891758,1.93762322,670.44,669.86,2.23631615]
[1752146892158,1.93762322,670.44,669.87,2.23631615]
[1752146894258,1.93762322,670.44,669.86,2.23631615]